[Event "Marmaris Karya IM 2018"]
[Site "Marmaris"]
[Date "2018.06.27"]
[Round "5.5"]
[White "Unat, Can Haktan"]
[Black "Bivol, Alina"]
[Result "0-1"]
[ECO "C01"]
[WhiteElo "2047"]
[BlackElo "2365"]
[Annotator "NA"]
[PlyCount "106"]
[EventDate "2018.06.25"]
[EventCountry "TUR"]
[SourceTitle "playchess.com"]
[Source "ChessBase"]
[SourceQuality "1"]
[TimeControl "5400+30"]

{[%evp 11,100,12,32767,32767,32767,32767,32767,32767,32767,-17,32767,32767,32767,32767,-27,32767,32767,-43,-8,-78,-89,-107,-123,-121,-56,-70,32767,-31,-36,-77,8,-55,-59,-50,32767,-75,50,-31,-25,32767,-32,32767,12,32767,32767,32767,-20,32767,0,32767,32767,32767,10,-121,-123,32767,-89,-174,-157,-207,-231,-222,32767,-260,-297,32767,-298,-473,32767,-633,32767,32767,32767,32767,32767,32767,32767,32767,32767,32767,-778,-651,-844,32767,32767,32767,-832,32767,32767,-881,-897]} 1. e4 {[%emt 0:00:30]} e6 {[%emt 0:01:00]} 2. d4 {[%emt 0:00:00]} d5 {[%emt 0:00:00]} 3. exd5 {[%emt 0:00:00]} exd5 {[%emt 0:00:00]} 4. Nf3 {[%emt 0:00:30]} Nf6 {[%emt 0:02:30]} 5. Bd3 {[%emt 0:00:00]} c5 {[%emt 0:00:30]} 6. O-O {[%emt 0:04:00]} c4 {[%emt 0:00:30]} 7. Re1+ {[%emt 0:01:30]} Be7 {[%emt 0:00:00]} 8. Bf1 {[%emt 0:01:30]} O-O {[%emt 0:00:00] C01: Französische Verteidigung (Abtauschvariante)} 9. Nc3 {[%emt 0:02:30]} (9. Bg5) 9... Nc6 {[%emt 0:05:30]} 10. Ne5 {[%emt 0:01:30]} h6 $146 {[%emt 0:03:30]} ({Vorgänger:} 10... Qb6 11. Nxc6 {1-0 (11) Otikova,E (1928)-Kuechle,W (2048) Dresden 2014}) 11. g3 {[%emt 0:03:30]} Bb4 {[%emt 0:01:30]} 12. Nxc6 {[%emt 0:09:30]} bxc6 {[%emt 0:00:30]} 13. Bd2 {[%emt 0:01:30]} Bg4 {[%emt 0:11:30]} 14. f3 {[%emt 0:11:30]} Bh5 {[%emt 0:00:30]} 15. g4 {[%emt 0:17:30]} Bg6 {[%emt 0:00:30]} 16. Ne2 {[%emt 0:00:30]} Bd6 {[%emt 0:02:30]} 17. Bf4 {[%emt 0:00:30]} Be7 {[%emt 0:06:30]} (17... h5 $17 18. Bxd6 Qxd6) 18. Qd2 {[%emt 0:03:30]} Nh7 {[%emt 0:00:30]} 19. Bg2 {[%emt 0:01:30]} Qd7 {[%emt 0:04:30]} 20. Bg3 {[%emt 0:05:30] [#]} Rae8 {[%emt 0:00:30]} ({Black should play} 20... f5 $1 $17 21. Nf4 Bg5) 21. h4 {[%emt 0:02:30]} (21. Nf4 $11) 21... f5 {[%emt 0:11:30]} 22. Nf4 $1 {[%emt 0:01:30]} Bf7 {[%emt 0:02:30]} 23. Bh3 {[%emt 0:00:30]} Qb7 {[%emt 0:04:30]} (23... g5 $17 24. hxg5 hxg5) 24. c3 {[%emt 0:02:30]} ({White should play} 24. gxf5 $11 Qxb2 25. Rab1) 24... fxg4 {[%emt 0:00:30]} 25. Bxg4 {[%emt 0:01:30]} Bd6 {[%emt 0:02:30]} 26. Qg2 {[%emt 0:00:30]} Nf6 {[%emt 0:12:30]} (26... Qb8 $15 27. Nh5 Bxg3 28. Nxg3 Nf6) 27. Bf5 {[%emt 0:00:30]} Qb8 {[%emt 0:03:30]} 28. Qh2 {[%emt 0:02:30]} Rxe1+ {[%emt 0:01:30]} (28... c5 $17 29. dxc5 Bxc5+ 30. Kh1 Bd6) 29. Rxe1 {[%emt 0:00:30]} Re8 {[%emt 0:01:30]} 30. Rf1 {[%emt 0:06:05]} Qd8 {[%emt 0:01:30]} 31. Qf2 {[%emt 0:03:57]} Qe7 {[%emt 0:02:43]} (31... Qc7 $15 32. Qh2 c5) 32. Ne2 {[%emt 0:00:58] [#]} (32. Ng6 $11 {remains equal.} Bxg6 33. Bxg6) 32... Nh5 $1 {[%emt 0:02:51]} 33. Bxd6 {[%emt 0:04:34]} Qxd6 {[%emt 0:00:01]} 34. Re1 {[%emt 0:01:52]} Rb8 {[%emt 0:01:13]} 35. b4 {[%emt 0:00:51]} cxb3 {[%emt 0:00:25]} 36. axb3 {[%emt 0:00:04]} Rxb3 {[%emt 0:01:35]} 37. Qe3 {[%emt 0:00:18]} Qf6 {[%emt 0:02:35]} ({Not} 37... Rb2 38. Qe5 $17) 38. Nc1 {[%emt 0:01:24]} Rb7 {[%emt 0:01:43]} ({Less strong is} 38... Qxf5 39. Nxb3 Nf4 40. Qd2 $15) 39. Bc8 $2 {[%emt 0:02:31]} (39. Qe5 Qxh4 40. Nd3) 39... Rb8 {[%emt 0:00:42]} 40. Be6 $2 {[%emt 0:01:42]} (40. Bg4) 40... Bxe6 {[%emt 0:03:02]} 41. Qxe6+ {[%emt 0:00:02]} Qxe6 {[%emt 0:00:10]} 42. Rxe6 {[%emt 0:00:01]} Nf4 {[%emt 0:00:18]} 43. Re1 {[%emt 0:00:30]} Rb2 {[%emt 0:00:27]} 44. Kf1 {[%emt 0:00:58]} a5 {[%emt 0:00:24]} 45. Rd1 {[%emt 0:01:08]} a4 {[%emt 0:00:07]} 46. Re1 {[%emt 0:01:17]} Kf7 {[%emt 0:01:30]} 47. h5 {[%emt 0:00:41]} a3 {[%emt 0:00:32]} 48. Rd1 {[%emt 0:00:07]} a2 {[%emt 0:00:46]} 49. Nxa2 {[%emt 0:00:10]} Rxa2 {[%emt 0:00:07]} 50. Rb1 {[%emt 0:00:08]} Rc2 $19 {[%emt 0:00:13]} 51. Rb3 {[%emt 0:00:18]} Nxh5 {[%emt 0:00:29]} 52. Ke1 {[%emt 0:00:07]} Nf4 {[%emt 0:00:14]} 53. Kd1 {[%emt 0:00:06]} Re2 {[%emt 0:00:10]} 0-1

[Event "Marmaris Karya IM 2018"]
[Site "Marmaris"]
[Date "2018.06.29"]
[Round "6.3"]
[White "Bagaturov, Giorgi"]
[Black "Tanriverdi, Enes"]
[Result "0-1"]
[ECO "E62"]
[WhiteElo "2397"]
[BlackElo "2281"]
[Annotator "ChessBase"]
[PlyCount "160"]
[EventDate "2018.06.25"]
[EventCountry "TUR"]
[SourceTitle "playchess.com"]
[Source "ChessBase"]
[SourceQuality "1"]
[TimeControl "5400+30"]

1. d4 {[%emt 0:00:30]} Nf6 {[%emt 0:03:00]} 2. Nf3 {[%emt 0:00:30]} g6 {[%emt 0:00:30]} 3. c4 {[%emt 0:00:30]} Bg7 {[%emt 0:00:30]} 4. g3 {[%emt 0:00:30]} O-O {[%emt 0:00:30]} 5. Bg2 {[%emt 0:00:00]} d6 {[%emt 0:00:00]} 6. Nc3 {[%emt 0:01:00]} Nc6 {[%emt 0:00:00]} 7. O-O {[%emt 0:00:30]} e5 {[%emt 0:00:30]} 8. d5 {[%emt 0:01:30]} Nb8 {[%emt 0:00:30]} 9. c5 {[%emt 0:07:30]} Na6 {[%emt 0:00:00]} 10. cxd6 {[%emt 0:01:30]} cxd6 {[%emt 0:00:00]} 11. Nd2 {[%emt 0:00:30]} Bd7 {[%emt 0:01:30]} 12. e4 {[%emt 0:03:30]} Rc8 {[%emt 0:00:30]} 13. Nb3 {[%emt 0:12:30]} b5 {[%emt 0:11:30]} 14. Qe2 {[%emt 0:01:30]} Qb6 {[%emt 0:01:30]} 15. Be3 {[%emt 0:03:30]} Qb8 {[%emt 0:02:30]} 16. Rfc1 {[%emt 0:14:30]} Ng4 {[%emt 0:02:30]} 17. Bh3 {[%emt 0:00:30]} h5 {[%emt 0:20:30]} 18. Na5 {[%emt 0:03:30]} f5 {[%emt 0:24:30]} 19. Nc6 {[%emt 0:20:30]} Rxc6 {[%emt 0:04:30]} 20. dxc6 {[%emt 0:00:30]} Bxc6 {[%emt 0:00:00]} 21. a4 {[%emt 0:02:30]} f4 {[%emt 0:01:00]} 22. Bxg4 {[%emt 0:02:30]} fxe3 {[%emt 0:03:30]} 23. Be6+ {[%emt 0:00:30]} Kh7 {[%emt 0:00:00]} 24. fxe3 {[%emt 0:01:30]} b4 {[%emt 0:02:00]} 25. Nb1 {[%emt 0:07:18]} Nc5 {[%emt 0:04:35]} 26. Nd2 {[%emt 0:00:15]} Qb7 {[%emt 0:00:13]} 27. Nc4 {[%emt 0:02:31]} Qe7 {[%emt 0:01:00]} 28. Bd5 {[%emt 0:01:51]} Bxd5 {[%emt 0:00:13]} 29. exd5 {[%emt 0:00:04]} Nb3 {[%emt 0:00:05]} 30. Rab1 {[%emt 0:00:31]} Nxc1 {[%emt 0:00:05]} 31. Rxc1 {[%emt 0:00:03]} e4 {[%emt 0:00:13]} 32. Rf1 {[%emt 0:01:36]} Rxf1+ {[%emt 0:02:16]} 33. Qxf1 {[%emt 0:00:08]} Qg5 {[%emt 0:00:51]} 34. Qd1 {[%emt 0:02:12]} h4 {[%emt 0:09:06]} 35. Kg2 {[%emt 0:00:53]} Bf8 {[%emt 0:01:23]} 36. b3 {[%emt 0:00:53]} Be7 {[%emt 0:00:09]} 37. g4 {[%emt 0:01:56]} Kg8 {[%emt 0:00:45]} 38. h3 {[%emt 0:02:42]} Qf6 {[%emt 0:00:10]} 39. Qf1 {[%emt 0:01:55]} Qc3 {[%emt 0:00:29]} 40. Qd1 {[%emt 0:00:44]} Kf7 {[%emt 0:03:12]} 41. Qb1 {[%emt 0:01:11]} Kf8 {[%emt 0:01:51]} 42. Qf1+ {[%emt 0:00:44]} Ke8 {[%emt 0:00:45]} 43. Qb1 {[%emt 0:00:07]} Kd8 {[%emt 0:00:47]} 44. Qxe4 {[%emt 0:01:23]} Qxb3 {[%emt 0:00:21]} 45. Na5 {[%emt 0:00:30]} Qb2+ {[%emt 0:00:04]} 46. Kf3 {[%emt 0:00:15]} Qf6+ {[%emt 0:00:04]} 47. Qf4 {[%emt 0:00:26]} Kc7 {[%emt 0:00:42]} 48. Qxf6 {[%emt 0:00:39]} Bxf6 {[%emt 0:00:01]} 49. Ke4 {[%emt 0:00:29]} Kb6 {[%emt 0:00:20]} 50. Nb3 {[%emt 0:00:05]} a5 {[%emt 0:00:25]} 51. Kd3 {[%emt 0:00:17]} Be5 {[%emt 0:00:22]} 52. Kc4 {[%emt 0:00:02]} Bf6 {[%emt 0:00:00]} 53. e4 {[%emt 0:00:04]} Bc3 {[%emt 0:00:00]} 54. Nc1 {[%emt 0:00:30]} Bf6 {[%emt 0:01:21]} 55. Nd3 {[%emt 0:00:40]} g5 {[%emt 0:00:09]} 56. Ne1 {[%emt 0:00:33]} b3 {[%emt 0:00:39]} 57. Kxb3 {[%emt 0:01:43]} Kc5 {[%emt 0:00:01]} 58. Nf3 {[%emt 0:00:02]} Be7 {[%emt 0:00:04]} 59. Kc3 {[%emt 0:00:56]} Bf6+ {[%emt 0:00:03]} 60. Kb3 {[%emt 0:01:06]} Be7 {[%emt 0:00:01]} 61. Kc3 {[%emt 0:00:00]} Bf6+ {[%emt 0:00:01]} 62. Kd3 {[%emt 0:00:45]} Kb4 {[%emt 0:00:34]} 63. Nd2 {[%emt 0:00:30]} Kxa4 {[%emt 0:00:27]} 64. Kc4 {[%emt 0:00:54]} Ka3 {[%emt 0:00:26]} 65. Kb5 {[%emt 0:00:21]} a4 {[%emt 0:00:23]} 66. Nc4+ {[%emt 0:01:09]} Kb3 {[%emt 0:00:00]} 67. Na5+ {[%emt 0:00:00]} Kc2 {[%emt 0:01:12]} 68. Kxa4 {[%emt 0:00:00]} Kd3 {[%emt 0:00:09]} 69. Kb5 {[%emt 0:00:00]} Kxe4 {[%emt 0:00:11]} 70. Kc6 {[%emt 0:00:00]} Kf3 {[%emt 0:00:38]} 71. Nc4 {[%emt 0:00:51]} Kg3 {[%emt 0:02:06]} 72. Nxd6 {[%emt 0:00:37]} Kxh3 {[%emt 0:00:02]} 73. Ne4 {[%emt 0:00:09]} Be5 {[%emt 0:02:29]} 74. Nxg5+ {[%emt 0:00:13]} Kxg4 {[%emt 0:00:05]} 75. Ne4 {[%emt 0:00:09]} Kf3 {[%emt 0:01:29]} 76. Ng5+ {[%emt 0:00:30]} Kf4 {[%emt 0:00:32]} 77. Nh3+ {[%emt 0:00:21]} Kg3 {[%emt 0:00:25]} 78. Ng5 {[%emt 0:00:38]} Bf4 {[%emt 0:00:12]} 79. Ne6 {[%emt 0:01:53]} h3 {[%emt 0:00:12]} 80. Nxf4 {[%emt 0:00:06]} Kxf4 {[%emt 0:00:19]} 0-1

[Event "Marmaris Karya IM 2018"]
[Site "Marmaris"]
[Date "2018.06.29"]
[Round "6.4"]
[White "Bivol, Alina"]
[Black "Arda, Cagil Irmak"]
[Result "1-0"]
[ECO "A30"]
[WhiteElo "2365"]
[BlackElo "2257"]
[Annotator "ChessBase"]
[PlyCount "76"]
[EventDate "2018.06.25"]
[EventCountry "TUR"]
[SourceTitle "playchess.com"]
[Source "ChessBase"]
[SourceQuality "1"]
[TimeControl "5400+30"]

1. Nf3 {[%emt 0:00:30]} Nf6 {[%emt 0:01:00]} 2. g3 {[%emt 0:01:30]} e6 {[%emt 0:00:30]} 3. Bg2 {[%emt 0:00:00]} d5 {[%emt 0:00:30]} 4. O-O {[%emt 0:00:00]} Be7 {[%emt 0:00:00]} 5. d3 {[%emt 0:00:30]} c5 {[%emt 0:00:00]} 6. c4 {[%emt 0:01:30]} Nc6 {[%emt 0:02:30]} 7. cxd5 {[%emt 0:07:30]} Nxd5 {[%emt 0:01:30]} 8. Nc3 {[%emt 0:02:30]} Nc7 {[%emt 0:07:30]} 9. Bf4 {[%emt 0:01:30]} f6 {[%emt 0:04:30]} 10. Bxc7 {[%emt 0:06:30]} Qxc7 {[%emt 0:00:30]} 11. d4 {[%emt 0:00:30]} cxd4 {[%emt 0:04:30]} 12. Nxd4 {[%emt 0:01:30]} Nxd4 {[%emt 0:01:30]} 13. Qxd4 {[%emt 0:00:30]} O-O {[%emt 0:02:30]} 14. Rac1 {[%emt 0:02:30]} Rd8 {[%emt 0:06:30]} 15. Qe3 {[%emt 0:04:30]} Bc5 {[%emt 0:15:30]} 16. Na4 {[%emt 0:15:30]} Bxe3 {[%emt 0:02:30]} 17. Rxc7 {[%emt 0:00:30]} Bh6 {[%emt 0:00:30]} 18. Bxb7 {[%emt 0:06:30]} Bxb7 {[%emt 0:00:30]} 19. Rxb7 {[%emt 0:00:00]} Rd4 {[%emt 0:00:30]} 20. Nc3 {[%emt 0:04:00]} a5 {[%emt 0:00:30]} 21. a3 {[%emt 0:01:30]} Rad8 {[%emt 0:03:30]} 22. Rb5 {[%emt 0:04:30]} Rd2 {[%emt 0:00:30]} 23. Rb1 {[%emt 0:04:30]} Ra8 {[%emt 0:00:30]} 24. e3 {[%emt 0:02:30]} f5 {[%emt 0:02:30]} 25. Rd1 {[%emt 0:01:30]} Rad8 {[%emt 0:01:30]} 26. Rxd2 {[%emt 0:00:30]} Rxd2 {[%emt 0:00:30]} 27. Na4 {[%emt 0:00:30]} Rd5 {[%emt 0:00:30]} 28. Rxd5 {[%emt 0:00:30]} exd5 {[%emt 0:00:30]} 29. Nc3 {[%emt 0:00:30]} d4 {[%emt 0:00:00]} 30. exd4 {[%emt 0:01:30]} Bc1 {[%emt 0:00:00]} 31. Nd1 {[%emt 0:00:30]} Kf7 {[%emt 0:00:00]} 32. Kf1 {[%emt 0:00:30]} Ke6 {[%emt 0:00:00]} 33. Ke2 {[%emt 0:00:30]} Kd5 {[%emt 0:00:30]} 34. Kd3 {[%emt 0:00:30]} h5 {[%emt 0:00:30]} 35. a4 {[%emt 0:00:30]} g5 {[%emt 0:00:30]} 36. Ne3+ {[%emt 0:01:30]} Bxe3 {[%emt 0:01:30]} 37. fxe3 {[%emt 0:00:00]} h4 {[%emt 0:01:30]} 38. gxh4 {[%emt 0:00:00]} gxh4 {[%emt 0:00:30]} 1-0

[Event "Marmaris Karya IM 2018"]
[Site "Marmaris"]
[Date "2018.06.29"]
[Round "6.5"]
[White "Darban, Morteza"]
[Black "Unat, Can Haktan"]
[Result "1-0"]
[ECO "A16"]
[WhiteElo "2312"]
[BlackElo "2047"]
[Annotator "ChessBase"]
[PlyCount "123"]
[EventDate "2018.06.25"]
[EventCountry "TUR"]
[SourceTitle "playchess.com"]
[Source "ChessBase"]
[SourceQuality "1"]
[TimeControl "5400+30"]

1. c4 {[%emt 0:02:30]} Nf6 {[%emt 0:01:00]} 2. Nc3 {[%emt 0:00:00]} d5 {[%emt 0:00:00]} 3. cxd5 {[%emt 0:00:00]} Nxd5 {[%emt 0:00:00]} 4. g3 {[%emt 0:00:30]} g6 {[%emt 0:01:30]} 5. Bg2 {[%emt 0:01:30]} Nb6 {[%emt 0:01:30]} 6. d3 {[%emt 0:00:30]} Bg7 {[%emt 0:00:30]} 7. Be3 {[%emt 0:00:00]} O-O {[%emt 0:02:30]} 8. Qd2 {[%emt 0:01:00]} Nc6 {[%emt 0:00:30]} 9. h4 {[%emt 0:06:30]} Bf5 {[%emt 0:09:30]} 10. Bxc6 {[%emt 0:01:30]} bxc6 {[%emt 0:00:30]} 11. Bh6 {[%emt 0:00:30]} Qd6 {[%emt 0:08:30]} 12. Bxg7 {[%emt 0:01:30]} Kxg7 {[%emt 0:00:30]} 13. h5 {[%emt 0:00:30]} Rfd8 {[%emt 0:05:30]} 14. Nf3 {[%emt 0:01:30]} Qf6 {[%emt 0:08:30]} 15. hxg6 {[%emt 0:01:30]} Bxg6 {[%emt 0:01:30]} 16. Qh6+ {[%emt 0:10:30]} Kg8 {[%emt 0:00:30]} 17. Nh4 {[%emt 0:10:30]} Qg7 {[%emt 0:16:30]} 18. Nxg6 {[%emt 0:02:30]} hxg6 {[%emt 0:00:30]} 19. Qxg7+ {[%emt 0:05:30]} Kxg7 {[%emt 0:00:30]} 20. Ne4 {[%emt 0:00:30]} Nd5 {[%emt 0:07:30]} 21. Kd2 {[%emt 0:01:30]} Rab8 {[%emt 0:00:30]} 22. b3 {[%emt 0:01:30]} a5 {[%emt 0:01:30]} 23. Nc5 {[%emt 0:08:30]} Rb5 {[%emt 0:03:30]} 24. Rac1 {[%emt 0:01:30]} Nb4 {[%emt 0:00:30]} 25. a4 {[%emt 0:03:30]} Rbb8 {[%emt 0:01:30]} 26. Rh4 {[%emt 0:01:30]} Nd5 {[%emt 0:02:30]} 27. Kc2 {[%emt 0:05:30]} Nf6 {[%emt 0:05:30]} 28. Kb2 {[%emt 0:01:30]} Rb6 {[%emt 0:02:32]} 29. Ne4 {[%emt 0:06:30]} g5 {[%emt 0:02:18]} 30. Nxg5 {[%emt 0:03:30]} Rdb8 {[%emt 0:00:04]} 31. Kc2 {[%emt 0:01:30]} Rxb3 {[%emt 0:00:52]} 32. Kd2 {[%emt 0:00:37]} Rb2+ {[%emt 0:01:48]} 33. Rc2 {[%emt 0:00:23]} Nd5 {[%emt 0:01:19]} 34. Nf3 {[%emt 0:03:44]} c5 {[%emt 0:01:07]} 35. Rhc4 {[%emt 0:01:40]} Rxc2+ {[%emt 0:03:31]} 36. Rxc2 {[%emt 0:02:04]} Rb4 {[%emt 0:01:19]} 37. Rxc5 {[%emt 0:00:42]} Nb6 {[%emt 0:01:47]} 38. Rxa5 {[%emt 0:00:12]} Nxa4 {[%emt 0:00:06]} 39. Ne1 {[%emt 0:04:03]} Rb2+ {[%emt 0:01:23]} 40. Nc2 {[%emt 0:00:18]} Nb6 {[%emt 0:00:08]} 41. Kc1 {[%emt 0:02:49]} Rb3 {[%emt 0:00:01]} 42. Nd4 {[%emt 0:00:53]} Rb4 {[%emt 0:00:14]} 43. Nc6 {[%emt 0:00:22]} Rg4 {[%emt 0:01:16]} 44. Nxe7 {[%emt 0:00:31]} Kf8 {[%emt 0:00:31]} 45. Nf5 {[%emt 0:01:31]} Ke8 {[%emt 0:00:10]} 46. e4 {[%emt 0:01:36]} Kd7 {[%emt 0:00:14]} 47. f3 {[%emt 0:02:00]} Rg6 {[%emt 0:00:15]} 48. Kd2 {[%emt 0:00:23]} Nc8 {[%emt 0:00:13]} 49. Rd5+ {[%emt 0:01:28]} Ke8 {[%emt 0:00:01]} 50. Rc5 {[%emt 0:00:15]} Kd7 {[%emt 0:00:13]} 51. Ke3 {[%emt 0:00:40]} Ra6 {[%emt 0:00:01]} 52. g4 {[%emt 0:00:51]} Nb6 {[%emt 0:00:24]} 53. g5 {[%emt 0:00:42]} c6 {[%emt 0:00:04]} 54. Nh6 {[%emt 0:01:15]} Na4 {[%emt 0:00:20]} 55. Rf5 {[%emt 0:01:44]} c5 {[%emt 0:00:07]} 56. Rxf7+ {[%emt 0:00:54]} Ke8 {[%emt 0:00:01]} 57. Rf6 {[%emt 0:00:11]} Ra7 {[%emt 0:00:51]} 58. Nf5 {[%emt 0:00:05]} Rd7 {[%emt 0:00:13]} 59. g6 {[%emt 0:00:17]} c4 {[%emt 0:00:41]} 60. dxc4 {[%emt 0:00:25]} Nc5 {[%emt 0:00:19]} 61. g7 {[%emt 0:00:07]} Rd3+ {[%emt 0:00:05]} 62. Ke2 {[%emt 0:00:14]} 1-0

[Event "Marmaris Karya IM 2018"]
[Site "Marmaris"]
[Date "2018.06.29"]
[Round "7.2"]
[White "Dedebas, Emre Emin"]
[Black "Bagaturov, Giorgi"]
[Result "1/2-1/2"]
[ECO "E11"]
[WhiteElo "2336"]
[BlackElo "2397"]
[Annotator "ChessBase"]
[PlyCount "60"]
[EventDate "2018.06.25"]
[EventCountry "TUR"]
[SourceTitle "playchess.com"]
[Source "ChessBase"]
[SourceQuality "1"]
[TimeControl "5400+30"]

1. d4 {[%emt 0:00:30]} Nf6 {[%emt 0:00:30]} 2. c4 {[%emt 0:00:00]} e6 {[%emt 0:00:00]} 3. Nf3 {[%emt 0:00:00]} Bb4+ {[%emt 0:00:00]} 4. Nbd2 {[%emt 0:01:30]} O-O {[%emt 0:02:30]} 5. a3 {[%emt 0:00:30]} Be7 {[%emt 0:00:00]} 6. e3 {[%emt 0:00:30]} c5 {[%emt 0:02:00]} 7. dxc5 {[%emt 0:01:30]} Bxc5 {[%emt 0:00:30]} 8. Be2 {[%emt 0:00:30]} b6 {[%emt 0:00:30]} 9. O-O {[%emt 0:00:00]} Bb7 {[%emt 0:00:30]} 10. b3 {[%emt 0:02:00]} Be7 {[%emt 0:02:30]} 11. Bb2 {[%emt 0:00:30]} d6 {[%emt 0:00:00]} 12. Nd4 {[%emt 0:01:30]} Nc6 {[%emt 0:03:00]} 13. Bf3 {[%emt 0:06:30]} Qd7 {[%emt 0:00:30]} 14. Nxc6 {[%emt 0:02:30]} Bxc6 {[%emt 0:00:30]} 15. Bxc6 {[%emt 0:00:00]} Qxc6 {[%emt 0:00:00]} 16. Qf3 {[%emt 0:00:00]} Rac8 {[%emt 0:00:00]} 17. Rfd1 {[%emt 0:00:30]} Rfd8 {[%emt 0:01:30]} 18. Rac1 {[%emt 0:00:00]} Qxf3 {[%emt 0:00:30]} 19. Nxf3 {[%emt 0:00:00]} Nd7 {[%emt 0:00:30]} 20. Nd2 {[%emt 0:01:30]} Bf6 {[%emt 0:00:30]} 21. Bxf6 {[%emt 0:00:30]} Nxf6 {[%emt 0:00:30]} 22. e4 {[%emt 0:01:30]} Kf8 {[%emt 0:00:00]} 23. f3 {[%emt 0:00:00]} Ke7 {[%emt 0:00:00]} 24. Kf2 {[%emt 0:00:00]} Nd7 {[%emt 0:00:30]} 25. Ke3 {[%emt 0:00:00]} Nc5 {[%emt 0:00:00]} 26. b4 {[%emt 0:00:00]} Nd7 {[%emt 0:00:00]} 27. Rc2 {[%emt 0:00:30]} Rc7 {[%emt 0:00:30]} 28. Rdc1 {[%emt 0:00:30]} Rdc8 {[%emt 0:00:30]} 29. g3 {[%emt 0:00:30]} Ne5 {[%emt 0:00:00]} 30. Kd4 {[%emt 0:01:30]} Nc6+ {[%emt 0:00:00]} 1/2-1/2

[Event "Marmaris Karya IM 2018"]
[Site "Marmaris"]
[Date "2018.06.28"]
[Round "7.2"]
[White "Dedebas, Emre Emin"]
[Black "Bagaturov, Giorgi"]
[Result "1/2-1/2"]
[ECO "E11"]
[WhiteElo "2336"]
[BlackElo "2397"]
[Annotator "NA"]
[PlyCount "60"]
[EventDate "2018.06.25"]
[EventCountry "TUR"]
[SourceTitle "playchess.com"]
[Source "ChessBase"]
[SourceQuality "1"]
[TimeControl "5400+30"]

1. d4 {[%emt 0:00:30]} Nf6 {[%emt 0:00:30]} 2. c4 {[%emt 0:00:00]} e6 {[%emt 0:00:00]} 3. Nf3 {[%emt 0:00:00]} Bb4+ {[%emt 0:00:00]} 4. Nbd2 {[%emt 0:01:30]} O-O {[%emt 0:02:30]} 5. a3 {[%emt 0:00:30]} Be7 {[%emt 0:00:00]} 6. e3 {[%emt 0:00:30]} c5 {[%emt 0:02:00]} 7. dxc5 {[%emt 0:01:30] E11: Bogo-Indian} Bxc5 {[%emt 0:00:30]} (7... a5 8. e4 Nc6 9. e5 Ng4 10. Ne4 b6 11. Bf4 f6 12. exf6 Nxf6 13. Nxf6+ Bxf6 14. Bd6 Bxb2 {½-½ (37) Nguyen,N (2634)-Tomashevsky,E (2758) Baku 2015}) 8. Be2 {[%emt 0:00:30]} b6 $146 {[%emt 0:00:30]} ({Predecessor:} 8... d5 9. O-O Nc6 10. b4 Be7 11. Qc2 a5 12. b5 Nb8 13. Bb2 Nbd7 14. cxd5 Nxd5 {0-1 (62) Akhmedov,F (2246)-Guliev,L (2438) Baku 2008}) 9. O-O {[%emt 0:00:00]} Bb7 {[%emt 0:00:30]} 10. b3 {[%emt 0:02:00]} Be7 {[%emt 0:02:30]} 11. Bb2 {[%emt 0:00:30]} d6 {[%emt 0:00:00]} 12. Nd4 {[%emt 0:01:30]} Nc6 {[%emt 0:03:00]} 13. Bf3 {[%emt 0:06:30]} Qd7 {[%emt 0:00:30]} 14. Nxc6 {[%emt 0:02:30]} Bxc6 {[%emt 0:00:30]} 15. Bxc6 {[%emt 0:00:00]} Qxc6 {[%emt 0:00:00]} 16. Qf3 {[%emt 0:00:00]} Rac8 {[%emt 0:00:00]} 17. Rfd1 {[%emt 0:00:30]} Rfd8 {[%emt 0:01:30]} 18. Rac1 {[%emt 0:00:00]} Qxf3 {[%emt 0:00:30]} 19. Nxf3 {[%emt 0:00:00]} Nd7 {[%emt 0:00:30]} 20. Nd2 {[%emt 0:01:30]} Bf6 {[%emt 0:00:30]} 21. Bxf6 {[%emt 0:00:30]} Nxf6 {[%emt 0:00:30]} 22. e4 {[%emt 0:01:30]} Kf8 {[%emt 0:00:00]} 23. f3 {[%emt 0:00:00]} Ke7 {[%emt 0:00:00]} 24. Kf2 {[%emt 0:00:00]} Nd7 {[%emt 0:00:30]} 25. Ke3 {[%emt 0:00:00]} Nc5 {[%emt 0:00:00]} 26. b4 {[%emt 0:00:00]} Nd7 {[%emt 0:00:00]} 27. Rc2 {[%emt 0:00:30]} Rc7 {[%emt 0:00:30]} 28. Rdc1 {[%emt 0:00:30]} Rdc8 {[%emt 0:00:30]} 29. g3 {[%emt 0:00:30]} Ne5 {[%emt 0:00:00]} 30. Kd4 $11 {[%emt 0:01:30]} Nc6+ {[%emt 0:00:00]} 1/2-1/2